[Event "*** Titled Tuesday Blitz"]
[Site "Chess.com"]
[Date "2021.04.06"]
[Round "6"]
[White "pfalcon1949"]
[Black "lukazz029"]
[Result "0-1"]
[WhiteElo "1983"]
[BlackElo "2117"]
[TimeControl "180+1"]
[EndTime "11:06:06 PDT"]
[Termination "lukazz029 won by resignation"]

1. c4 {[%clk 0:03:00.9]} 1... Nf6 {[%clk 0:02:59.3]} 2. Nc3 {[%clk 0:03:01.8]}
2... g6 {[%clk 0:02:58.9]} 3. g3 {[%clk 0:03:00.1]} 3... Bg7 {[%clk 0:02:59.5]}
4. Bg2 {[%clk 0:03:00.6]} 4... O-O {[%clk 0:03:00.1]} 5. e4 {[%clk 0:03:01.1]}
5... d6 {[%clk 0:03:00.4]} 6. Nge2 {[%clk 0:03:01.3]} 6... c5 {[%clk 0:02:59.8]}
7. O-O {[%clk 0:03:00.9]} 7... Nc6 {[%clk 0:02:55.1]} 8. d3 {[%clk 0:02:59.5]}
8... e5 {[%clk 0:02:53.7]} 9. h3 {[%clk 0:02:57.9]} 9... Nd4 {[%clk 0:02:53.3]}
10. Kh2 {[%clk 0:02:53.6]} 10... Re8 {[%clk 0:02:51.8]} 11. Be3 {[%clk
0:02:48.3]} 11... Nd7 {[%clk 0:02:50.9]} 12. Nd5 {[%clk 0:02:46.7]} 12... Nf8
{[%clk 0:02:50.5]} 13. Qd2 {[%clk 0:02:41.9]} 13... Be6 {[%clk 0:02:51]} 14.
Rac1 {[%clk 0:02:39.4]} 14... Bxd5 {[%clk 0:02:47.3]} 15. cxd5 {[%clk
0:02:28.9]} 15... b5 {[%clk 0:02:47.3]} 16. f4 {[%clk 0:02:26.3]} 16... Nd7
{[%clk 0:02:38.8]} 17. f5 {[%clk 0:02:18.1]} 17... f6 {[%clk 0:02:29.2]} 18.
Nxd4 {[%clk 0:02:08.4]} 18... exd4 {[%clk 0:02:26.9]} 19. Bh6 {[%clk 0:02:00]}
19... Ne5 {[%clk 0:02:26.1]} 20. fxg6 {[%clk 0:01:57.8]} 20... hxg6 {[%clk
0:02:25.5]} 21. Bxg7 {[%clk 0:01:56.6]} 21... Kxg7 {[%clk 0:02:24.8]} 22. Rf2
{[%clk 0:01:54]} 22... Rh8 {[%clk 0:02:23.9]} 23. Rcf1 {[%clk 0:01:52.5]} 23...
Ng4+ {[%clk 0:02:20.3]} 24. Kg1 {[%clk 0:01:52.2]} 24... Nxf2 {[%clk 0:02:19.2]}
25. Qxf2 {[%clk 0:01:53.1]} 25... Qe7 {[%clk 0:02:18.1]} 26. b3 {[%clk
0:01:49.2]} 26... Qe5 {[%clk 0:02:17.4]} 27. Kh2 {[%clk 0:01:48]} 27... b4
{[%clk 0:02:15.8]} 28. Kg1 {[%clk 0:01:41.5]} 28... a5 {[%clk 0:02:13.1]} 29. g4
{[%clk 0:01:29.5]} 29... Qg5 {[%clk 0:02:09.6]} 30. Qg3 {[%clk 0:01:16.4]} 30...
Qe5 {[%clk 0:02:06.5]} 31. Qf3 {[%clk 0:01:11.6]} 31... a4 {[%clk 0:02:04]} 32.
Qf4 {[%clk 0:00:39.6]} 32... Qxf4 {[%clk 0:01:56.2]} 33. Rxf4 {[%clk 0:00:40.5]}
33... axb3 {[%clk 0:01:56]} 34. axb3 {[%clk 0:00:39.4]} 34... Ra3 {[%clk
0:01:56.5]} 35. Rf1 {[%clk 0:00:26]} 35... Rxb3 {[%clk 0:01:55.7]} 36. Ra1
{[%clk 0:00:26.5]} 36... Ra3 {[%clk 0:01:55.2]} 0-1

[Event "*** Titled Tuesday Blitz"]
[Site "Chess.com"]
[Date "2021.04.06"]
[Round "6"]
[White "Yaryi_sergey"]
[Black "Fortitudine"]
[Result "1-0"]
[WhiteElo "2518"]
[BlackElo "2278"]
[TimeControl "180+1"]
[EndTime "11:06:13 PDT"]
[Termination "Yaryi_sergey won by resignation"]

1. Nf3 {[%clk 0:02:59.4]} 1... Nf6 {[%clk 0:02:58.9]} 2. d4 {[%clk 0:02:59]}
2... g6 {[%clk 0:02:56.2]} 3. g3 {[%clk 0:02:58.4]} 3... Bg7 {[%clk 0:02:55.1]}
4. Bg2 {[%clk 0:02:59.3]} 4... O-O {[%clk 0:02:55.5]} 5. b4 {[%clk 0:02:59]}
5... a5 {[%clk 0:02:48.7]} 6. b5 {[%clk 0:02:58.1]} 6... d5 {[%clk 0:02:34.6]}
7. a4 {[%clk 0:02:57.7]} 7... Nbd7 {[%clk 0:02:32.1]} 8. O-O {[%clk 0:02:57.4]}
8... Nb6 {[%clk 0:02:31.7]} 9. Nbd2 {[%clk 0:02:57.2]} 9... Bf5 {[%clk
0:02:13.7]} 10. Ne5 {[%clk 0:02:56.3]} 10... Nfd7 {[%clk 0:02:08.7]} 11. f4
{[%clk 0:02:54.2]} 11... f6 {[%clk 0:01:59.1]} 12. Nd3 {[%clk 0:02:53.6]} 12...
e5 {[%clk 0:01:45]} 13. e3 {[%clk 0:02:53.5]} 13... Re8 {[%clk 0:01:29.1]} 14.
Nc5 {[%clk 0:02:52.2]} 14... exd4 {[%clk 0:01:21.6]} 15. exd4 {[%clk 0:02:52.1]}
15... Rb8 {[%clk 0:00:51.3]} 16. g4 {[%clk 0:02:44.8]} 16... Be6 {[%clk
0:00:34.5]} 17. f5 {[%clk 0:02:44.3]} 17... Bf7 {[%clk 0:00:32.5]} 18. Ndb3
{[%clk 0:02:42.7]} 18... Nc4 {[%clk 0:00:28.1]} 19. Qd3 {[%clk 0:02:42.5]} 19...
c6 {[%clk 0:00:24.5]} 20. Bf4 {[%clk 0:02:40.9]} 20... Nxc5 {[%clk 0:00:21.3]}
21. Nxc5 {[%clk 0:02:39.1]} 21... Nd6 {[%clk 0:00:17.4]} 22. Rab1 {[%clk
0:02:31.9]} 22... Re7 {[%clk 0:00:08.3]} 23. bxc6 {[%clk 0:02:27.8]} 23... bxc6
{[%clk 0:00:08.6]} 24. Rxb8 {[%clk 0:02:27.5]} 24... Qxb8 {[%clk 0:00:09.5]} 25.
Qa6 {[%clk 0:02:28.4]} 25... Qc7 {[%clk 0:00:07.1]} 26. Rb1 {[%clk 0:02:22.3]}
26... Re8 {[%clk 0:00:05]} 27. Rb2 {[%clk 0:02:21.4]} 27... Qe7 {[%clk
0:00:04.1]} 28. fxg6 {[%clk 0:02:14]} 28... Qe1+ {[%clk 0:00:03.8]} 29. Qf1
{[%clk 0:02:13.5]} 29... Qxf1+ {[%clk 0:00:03.3]} 30. Bxf1 {[%clk 0:02:13.7]}
30... Nc4 {[%clk 0:00:02.8]} 31. gxf7+ {[%clk 0:02:13]} 31... Kxf7 {[%clk
0:00:02.5]} 32. Bxc4 {[%clk 0:02:13.9]} 1-0

[Event "*** Titled Tuesday Blitz"]
[Site "Chess.com"]
[Date "2021.04.06"]
[Round "6"]
[White "HouseOfDurin"]
[Black "Chandradi"]
[Result "0-1"]
[WhiteElo "2165"]
[BlackElo "2386"]
[TimeControl "180+1"]
[EndTime "11:06:14 PDT"]
[Termination "Chandradi won by checkmate"]

1. d4 {[%clk 0:03:00.9]} 1... Nf6 {[%clk 0:02:55.9]} 2. Bg5 {[%clk 0:03:01.4]}
2... Ne4 {[%clk 0:02:54.1]} 3. h4 {[%clk 0:03:00.8]} 3... Nxg5 {[%clk
0:02:53.3]} 4. hxg5 {[%clk 0:03:01.7]} 4... c5 {[%clk 0:02:53.1]} 5. dxc5 {[%clk
0:02:56.7]} 5... Qa5+ {[%clk 0:02:50.9]} 6. c3 {[%clk 0:02:56.6]} 6... Qxc5
{[%clk 0:02:51.2]} 7. f4 {[%clk 0:02:42.6]} 7... Qe3 {[%clk 0:02:40.3]} 8. Qd2
{[%clk 0:02:23.5]} 8... Qg3+ {[%clk 0:02:39.5]} 9. Kd1 {[%clk 0:02:22.8]} 9...
Nc6 {[%clk 0:02:38.2]} 10. e4 {[%clk 0:02:04.7]} 10... d6 {[%clk 0:02:36.7]} 11.
Nf3 {[%clk 0:01:50.1]} 11... Bg4 {[%clk 0:02:36.1]} 12. Qe3 {[%clk 0:01:34.4]}
12... e5 {[%clk 0:02:35]} 13. f5 {[%clk 0:01:29]} 13... Be7 {[%clk 0:02:31.9]}
14. Nd2 {[%clk 0:01:22.7]} 14... O-O-O {[%clk 0:02:20.8]} 15. Kc2 {[%clk
0:01:19.3]} 15... d5 {[%clk 0:02:20.6]} 16. Re1 {[%clk 0:00:24.8]} 16... d4
{[%clk 0:02:05.9]} 17. cxd4 {[%clk 0:00:21]} 17... exd4 {[%clk 0:02:06.8]} 18.
Qb3 {[%clk 0:00:19.7]} 18... d3+ {[%clk 0:02:05.2]} 19. Kb1 {[%clk 0:00:18.2]}
19... Bb4 {[%clk 0:02:01.5]} 20. Bxd3 {[%clk 0:00:16.9]} 20... Rxd3 {[%clk
0:01:59.1]} 21. Qxd3 {[%clk 0:00:16.1]} 21... Rd8 {[%clk 0:01:58.7]} 22. Qc4
{[%clk 0:00:13.9]} 22... Bxd2 {[%clk 0:01:52.7]} 23. Nxd2 {[%clk 0:00:13.4]}
23... Rxd2 {[%clk 0:01:53.6]} 24. Rd1 {[%clk 0:00:13.2]} 24... Bxd1 {[%clk
0:01:50.3]} 25. Rxd1 {[%clk 0:00:13.8]} 25... Rxd1+ {[%clk 0:01:49.7]} 26. Kc2
{[%clk 0:00:14.5]} 26... Qe1 {[%clk 0:01:48]} 27. Qxf7 {[%clk 0:00:13.8]} 27...
Nd4# {[%clk 0:01:42.2]} 0-1

[Event "*** Titled Tuesday Blitz"]
[Site "Chess.com"]
[Date "2021.04.06"]
[Round "6"]
[White "Eliwood44"]
[Black "Aygehovit1992"]
[Result "0-1"]
[WhiteElo "2511"]
[BlackElo "2656"]
[TimeControl "180+1"]
[EndTime "11:06:19 PDT"]
[Termination "Aygehovit1992 won on time"]

1. d4 {[%clk 0:03:00.9]} 1... d6 {[%clk 0:03:00.9]} 2. Nc3 {[%clk 0:02:52.7]}
2... g6 {[%clk 0:03:01.8]} 3. e4 {[%clk 0:02:52.2]} 3... a6 {[%clk 0:03:02.3]}
4. Nf3 {[%clk 0:02:51.5]} 4... Bg7 {[%clk 0:03:01.8]} 5. Be2 {[%clk 0:02:51.8]}
5... b5 {[%clk 0:03:02]} 6. O-O {[%clk 0:02:49.9]} 6... Bb7 {[%clk 0:03:02.3]}
7. a3 {[%clk 0:02:42.6]} 7... Nf6 {[%clk 0:03:01.5]} 8. e5 {[%clk 0:02:41.5]}
8... Nd5 {[%clk 0:03:01.5]} 9. Nxd5 {[%clk 0:02:37]} 9... Bxd5 {[%clk
0:03:02.4]} 10. Re1 {[%clk 0:02:36.8]} 10... Nc6 {[%clk 0:03:01.7]} 11. a4
{[%clk 0:02:36.4]} 11... Rb8 {[%clk 0:03:00.4]} 12. axb5 {[%clk 0:02:36.1]}
12... axb5 {[%clk 0:03:01.3]} 13. Bg5 {[%clk 0:02:01]} 13... h6 {[%clk 0:03:00]}
14. Bh4 {[%clk 0:01:59.8]} 14... O-O {[%clk 0:02:58.9]} 15. exd6 {[%clk
0:01:35.4]} 15... cxd6 {[%clk 0:02:59.8]} 16. c3 {[%clk 0:01:31.8]} 16... g5
{[%clk 0:02:58]} 17. Bg3 {[%clk 0:01:31.4]} 17... f5 {[%clk 0:02:58]} 18. Bd3
{[%clk 0:01:19.4]} 18... f4 {[%clk 0:02:54.3]} 19. Nxg5 {[%clk 0:01:19.3]} 19...
fxg3 {[%clk 0:02:49.8]} 20. hxg3 {[%clk 0:01:18.3]} 20... hxg5 {[%clk
0:02:48.2]} 21. Qh5 {[%clk 0:01:18]} 21... Rf6 {[%clk 0:02:48.4]} 22. Bh7+
{[%clk 0:01:07.8]} 22... Kf8 {[%clk 0:02:47.7]} 23. Qxg5 {[%clk 0:01:07.9]}
23... e6 {[%clk 0:02:40.9]} 24. Bd3 {[%clk 0:00:53.8]} 24... Qe7 {[%clk
0:02:34.3]} 25. Ra6 {[%clk 0:00:50.8]} 25... Nd8 {[%clk 0:02:28.3]} 26. f4
{[%clk 0:00:37.3]} 26... Nf7 {[%clk 0:02:27.1]} 27. Qg4 {[%clk 0:00:35]} 27...
Nh6 {[%clk 0:02:25.6]} 28. Qe2 {[%clk 0:00:33.4]} 28... Kg8 {[%clk 0:02:18.4]}
29. Bxb5 {[%clk 0:00:32.6]} 29... Qb7 {[%clk 0:02:18.4]} 30. c4 {[%clk
0:00:32.3]} 30... Rg6 {[%clk 0:02:14.1]} 31. Rxd6 {[%clk 0:00:27.5]} 31... Bxd4+
{[%clk 0:02:12.8]} 32. Kh1 {[%clk 0:00:24.4]} 32... Ng4 {[%clk 0:02:07.8]} 0-1

[Event "*** Titled Tuesday Blitz"]
[Site "Chess.com"]
[Date "2021.04.06"]
[Round "6"]
[White "Giorno"]
[Black "IwkooO"]
[Result "0-1"]
[WhiteElo "2471"]
[BlackElo "2609"]
[TimeControl "180+1"]
[EndTime "11:06:19 PDT"]
[Termination "IwkooO won by checkmate"]

1. Nf3 {[%clk 0:03:00.9]} 1... b6 {[%clk 0:02:52.7]} 2. g3 {[%clk 0:02:57.6]}
2... Bb7 {[%clk 0:02:53.6]} 3. Bg2 {[%clk 0:02:57.7]} 3... g6 {[%clk 0:02:47.5]}
4. d3 {[%clk 0:02:57.5]} 4... Bg7 {[%clk 0:02:48.1]} 5. e4 {[%clk 0:02:57.9]}
5... e6 {[%clk 0:02:48.6]} 6. O-O {[%clk 0:02:58]} 6... Ne7 {[%clk 0:02:49.3]}
7. Nbd2 {[%clk 0:02:58.2]} 7... O-O {[%clk 0:02:50]} 8. c3 {[%clk 0:02:58.8]}
8... d6 {[%clk 0:02:50.7]} 9. Re1 {[%clk 0:02:58.7]} 9... Nd7 {[%clk 0:02:51.4]}
10. h4 {[%clk 0:02:57.9]} 10... h6 {[%clk 0:02:50.1]} 11. h5 {[%clk 0:02:53.8]}
11... g5 {[%clk 0:02:47.8]} 12. Nf1 {[%clk 0:02:52.9]} 12... c5 {[%clk
0:02:42.7]} 13. Ne3 {[%clk 0:02:48.5]} 13... d5 {[%clk 0:02:39.6]} 14. exd5
{[%clk 0:02:37.9]} 14... Nxd5 {[%clk 0:02:38.6]} 15. Nxd5 {[%clk 0:02:35.9]}
15... Bxd5 {[%clk 0:02:39.5]} 16. d4 {[%clk 0:02:30.6]} 16... cxd4 {[%clk
0:02:38]} 17. Nxd4 {[%clk 0:02:30.1]} 17... Bxg2 {[%clk 0:02:38.4]} 18. Kxg2
{[%clk 0:02:30.1]} 18... Nc5 {[%clk 0:02:38.2]} 19. Be3 {[%clk 0:02:25.2]} 19...
Qd5+ {[%clk 0:02:30.6]} 20. Qf3 {[%clk 0:02:25.3]} 20... Rad8 {[%clk 0:02:29.7]}
21. Nc6 {[%clk 0:02:20.6]} 21... Qxf3+ {[%clk 0:02:26.5]} 22. Kxf3 {[%clk
0:02:21.5]} 22... Rd7 {[%clk 0:02:25.4]} 23. Red1 {[%clk 0:02:12.3]} 23... Rc7
{[%clk 0:02:23.9]} 24. Bxc5 {[%clk 0:02:02.5]} 24... bxc5 {[%clk 0:02:20.3]} 25.
Na5 {[%clk 0:02:02.1]} 25... c4 {[%clk 0:02:17.3]} 26. Rd6 {[%clk 0:01:45.8]}
26... Rb8 {[%clk 0:02:16]} 27. Rad1 {[%clk 0:00:49.9]} 27... Rb5 {[%clk
0:02:02.9]} 28. Ra6 {[%clk 0:00:40.4]} 28... Rxb2 {[%clk 0:02:01.1]} 29. Rd8+
{[%clk 0:00:34.2]} 29... Kh7 {[%clk 0:02:00.7]} 30. Nc6 {[%clk 0:00:29]} 30...
Bxc3 {[%clk 0:02:00.2]} 31. Nxa7 {[%clk 0:00:29.3]} 31... Bf6 {[%clk 0:01:56.8]}
32. Rc8 {[%clk 0:00:25.5]} 32... Rxc8 {[%clk 0:01:56.3]} 33. Nxc8 {[%clk
0:00:26.4]} 33... c3 {[%clk 0:01:56.6]} 34. Nd6 {[%clk 0:00:26.5]} 34... Bd4
{[%clk 0:01:55]} 35. Ne4 {[%clk 0:00:24.6]} 35... f5 {[%clk 0:01:55.1]} 36. Nxc3
{[%clk 0:00:22.6]} 36... Rxf2# {[%clk 0:01:54.7]} 0-1

[Event "*** Titled Tuesday Blitz"]
[Site "Chess.com"]
[Date "2021.04.06"]
[Round "6"]
[White "Andrakhanova"]
[Black "KingCyber19"]
[Result "1-0"]
[WhiteElo "2253"]
[BlackElo "2528"]
[TimeControl "180+1"]
[EndTime "11:06:22 PDT"]
[Termination "Andrakhanova won by checkmate"]

1. c4 {[%clk 0:02:56.6]} 1... c5 {[%clk 0:02:59.8]} 2. Nc3 {[%clk 0:02:52.2]}
2... Nc6 {[%clk 0:02:57.9]} 3. g3 {[%clk 0:02:53]} 3... Nf6 {[%clk 0:02:58.3]}
4. Bg2 {[%clk 0:02:53.4]} 4... e6 {[%clk 0:02:58.8]} 5. Nf3 {[%clk 0:02:52.5]}
5... d5 {[%clk 0:02:55.9]} 6. cxd5 {[%clk 0:02:50.6]} 6... exd5 {[%clk
0:02:55.9]} 7. d4 {[%clk 0:02:50.7]} 7... Be6 {[%clk 0:02:52.8]} 8. O-O {[%clk
0:02:41.9]} 8... c4 {[%clk 0:02:53]} 9. h3 {[%clk 0:02:40.4]} 9... Bb4 {[%clk
0:02:53.3]} 10. Ne5 {[%clk 0:02:33.3]} 10... O-O {[%clk 0:02:50.3]} 11. Bg5
{[%clk 0:02:25.2]} 11... Be7 {[%clk 0:02:46.2]} 12. Qd2 {[%clk 0:02:00.7]} 12...
a6 {[%clk 0:02:30.3]} 13. a4 {[%clk 0:01:37.4]} 13... Na5 {[%clk 0:02:27.5]} 14.
Rad1 {[%clk 0:01:29]} 14... Nb3 {[%clk 0:02:24.3]} 15. Qe3 {[%clk 0:01:27.5]}
15... h6 {[%clk 0:02:19.9]} 16. Bxf6 {[%clk 0:01:21]} 16... Bxf6 {[%clk
0:02:19.7]} 17. f4 {[%clk 0:01:14.2]} 17... Bxe5 {[%clk 0:02:12.4]} 18. fxe5
{[%clk 0:01:13.5]} 18... Qd7 {[%clk 0:02:10.3]} 19. Kh2 {[%clk 0:01:12.4]} 19...
b5 {[%clk 0:02:10.3]} 20. Rf4 {[%clk 0:00:45.2]} 20... b4 {[%clk 0:02:09.3]} 21.
Nb1 {[%clk 0:00:44.5]} 21... Qxa4 {[%clk 0:02:09.3]} 22. Rdf1 {[%clk 0:00:44.2]}
22... Rae8 {[%clk 0:02:01.8]} 23. Rh4 {[%clk 0:00:37.6]} 23... Qd7 {[%clk
0:01:58.9]} 24. Rf6 {[%clk 0:00:35.7]} 24... Bf5 {[%clk 0:01:52.9]} 25. Rfxh6
{[%clk 0:00:33.6]} 25... gxh6 {[%clk 0:01:53.1]} 26. Qxh6 {[%clk 0:00:32.2]}
26... f6 {[%clk 0:01:53.3]} 27. exf6 {[%clk 0:00:14.6]} 27... Bh7 {[%clk
0:01:52.2]} 28. Bxd5+ {[%clk 0:00:12.8]} 28... Kh8 {[%clk 0:01:52.5]} 29. f7
{[%clk 0:00:07.8]} 29... Rxe2+ {[%clk 0:01:52.3]} 30. Bg2 {[%clk 0:00:05.3]}
30... Qf5 {[%clk 0:01:52.1]} 31. Qxf8# {[%clk 0:00:04.5]} 1-0

[Event "*** Titled Tuesday Blitz"]
[Site "Chess.com"]
[Date "2021.04.06"]
[Round "6"]
[White "bushrashuaibi"]
[Black "MoreChessJulia"]
[Result "1-0"]
[WhiteElo "2058"]
[BlackElo "2105"]
[TimeControl "180+1"]
[EndTime "11:06:23 PDT"]
[Termination "bushrashuaibi won by resignation"]

1. d4 {[%clk 0:03:00.9]} 1... g6 {[%clk 0:02:59.8]} 2. e4 {[%clk 0:02:56]} 2...
d5 {[%clk 0:02:59.3]} 3. exd5 {[%clk 0:02:51.7]} 3... Nf6 {[%clk 0:02:58.6]} 4.
c4 {[%clk 0:02:50.6]} 4... Bg7 {[%clk 0:02:58]} 5. Nf3 {[%clk 0:02:48.3]} 5...
O-O {[%clk 0:02:58]} 6. Nc3 {[%clk 0:02:48]} 6... Nbd7 {[%clk 0:02:54.7]} 7. Be2
{[%clk 0:02:46]} 7... Nb6 {[%clk 0:02:53]} 8. O-O {[%clk 0:02:44]} 8... Bg4
{[%clk 0:02:52.7]} 9. Qd3 {[%clk 0:02:27.4]} 9... e6 {[%clk 0:02:37.2]} 10. dxe6
{[%clk 0:02:21.2]} 10... Bxe6 {[%clk 0:02:36.6]} 11. d5 {[%clk 0:02:02]} 11...
Bf5 {[%clk 0:02:36.3]} 12. Qd1 {[%clk 0:01:56.9]} 12... Rc8 {[%clk 0:02:35.3]}
13. Nd4 {[%clk 0:01:52.3]} 13... Bd7 {[%clk 0:02:32.1]} 14. Bf3 {[%clk
0:01:45.9]} 14... c6 {[%clk 0:02:25.3]} 15. dxc6 {[%clk 0:01:36.7]} 15... bxc6
{[%clk 0:02:25.1]} 16. b3 {[%clk 0:01:32.1]} 16... c5 {[%clk 0:02:24.8]} 17. Nc2
{[%clk 0:01:28.1]} 17... Bc6 {[%clk 0:02:24.6]} 18. Bb2 {[%clk 0:01:26]} 18...
Qd7 {[%clk 0:02:11.6]} 19. Bxc6 {[%clk 0:01:24.3]} 19... Qxc6 {[%clk 0:02:10.9]}
20. Ne3 {[%clk 0:01:15.6]} 20... Ne4 {[%clk 0:02:06.4]} 21. Ncd5 {[%clk
0:01:10.7]} 21... Nxd5 {[%clk 0:02:01.4]} 22. Nxd5 {[%clk 0:01:11.6]} 22... Qb7
{[%clk 0:01:53.4]} 23. Bxg7 {[%clk 0:01:08.4]} 23... Kxg7 {[%clk 0:01:52.7]} 24.
Qc2 {[%clk 0:01:06.6]} 24... Rce8 {[%clk 0:01:51.8]} 25. Rfe1 {[%clk 0:01:00.5]}
25... Nd6 {[%clk 0:01:48]} 26. Qc3+ {[%clk 0:00:59]} 26... f6 {[%clk 0:01:40]}
27. h4 {[%clk 0:00:36.1]} 27... Qf7 {[%clk 0:01:31.1]} 28. h5 {[%clk 0:00:34.5]}
28... gxh5 {[%clk 0:01:29.8]} 29. Qg3+ {[%clk 0:00:32.2]} 29... Kh8 {[%clk
0:01:27.5]} 30. Qxd6 {[%clk 0:00:31.2]} 1-0

[Event "*** Titled Tuesday Blitz"]
[Site "Chess.com"]
[Date "2021.04.06"]
[Round "6"]
[White "shimastream"]
[Black "Marianov_Podstavnikov"]
[Result "1-0"]
[WhiteElo "2942"]
[BlackElo "2366"]
[TimeControl "180+1"]
[EndTime "11:06:24 PDT"]
[Termination "shimastream won by resignation"]

1. e4 {[%clk 0:03:00.9]} 1... e5 {[%clk 0:02:58.6]} 2. Nf3 {[%clk 0:03:00.7]}
2... Nc6 {[%clk 0:02:57.4]} 3. Bc4 {[%clk 0:02:57.3]} 3... Nf6 {[%clk 0:02:56]}
4. d4 {[%clk 0:02:31.4]} 4... exd4 {[%clk 0:02:53.4]} 5. O-O {[%clk 0:02:31.5]}
5... Nxe4 {[%clk 0:02:52.8]} 6. Nc3 {[%clk 0:02:26.3]} 6... dxc3 {[%clk
0:02:38.5]} 7. Bxf7+ {[%clk 0:02:25.6]} 7... Kxf7 {[%clk 0:02:29.4]} 8. Qd5+
{[%clk 0:02:25.3]} 8... Ke8 {[%clk 0:02:14.4]} 9. Re1 {[%clk 0:02:25.3]} 9...
Be7 {[%clk 0:01:21.6]} 10. Rxe4 {[%clk 0:02:24.8]} 10... d6 {[%clk 0:01:06.5]}
11. Bg5 {[%clk 0:02:24.3]} 11... cxb2 {[%clk 0:00:59.6]} 12. Rae1 {[%clk
0:02:23.7]} 12... Kf8 {[%clk 0:00:45.7]} 13. Rf4+ {[%clk 0:02:13.9]} 13... Bf6
{[%clk 0:00:45]} 14. Rxf6+ {[%clk 0:02:14]} 14... Qxf6 {[%clk 0:00:38.9]} 15.
Bxf6 {[%clk 0:02:13.2]} 15... gxf6 {[%clk 0:00:39.4]} 16. Nd4 {[%clk 0:02:07.6]}
16... Ne5 {[%clk 0:00:39]} 17. f4 {[%clk 0:02:05]} 17... Ng6 {[%clk 0:00:37.2]}
18. Qb5 {[%clk 0:01:53.3]} 18... Nxf4 {[%clk 0:00:27.5]} 19. Qxb2 {[%clk
0:01:34.5]} 19... Kf7 {[%clk 0:00:20.6]} 20. Qb3+ {[%clk 0:01:30.9]} 20... d5
{[%clk 0:00:21]} 21. Qf3 {[%clk 0:01:25.5]} 21... Ne6 {[%clk 0:00:20.3]} 22.
Qxd5 {[%clk 0:01:24.7]} 22... Rd8 {[%clk 0:00:19.9]} 23. Qh5+ {[%clk 0:01:24.4]}
23... Kg7 {[%clk 0:00:19]} 24. Nxe6+ {[%clk 0:01:23.8]} 24... Bxe6 {[%clk
0:00:19.6]} 25. Rxe6 {[%clk 0:01:24.5]} 1-0

[Event "*** Titled Tuesday Blitz"]
[Site "Chess.com"]
[Date "2021.04.06"]
[Round "6"]
[White "GelmanAlexander"]
[Black "Two_Towers_Krakow"]
[Result "1-0"]
[WhiteElo "2654"]
[BlackElo "2507"]
[TimeControl "180+1"]
[EndTime "11:06:31 PDT"]
[Termination "GelmanAlexander won by resignation"]

1. d4 {[%clk 0:03:00.9]} 1... Nf6 {[%clk 0:02:59.4]} 2. Nc3 {[%clk 0:02:59.4]}
2... d5 {[%clk 0:02:58.5]} 3. Bf4 {[%clk 0:02:59.6]} 3... c6 {[%clk 0:02:57.4]}
4. f3 {[%clk 0:02:59.7]} 4... Bf5 {[%clk 0:02:57.1]} 5. g4 {[%clk 0:03:00]} 5...
Bg6 {[%clk 0:02:56.4]} 6. h4 {[%clk 0:03:00.7]} 6... h6 {[%clk 0:02:56.4]} 7. e3
{[%clk 0:03:00.7]} 7... e6 {[%clk 0:02:56]} 8. Qd2 {[%clk 0:03:00.5]} 8... Bd6
{[%clk 0:02:56]} 9. Nge2 {[%clk 0:03:00.4]} 9... Qc7 {[%clk 0:02:42.3]} 10.
O-O-O {[%clk 0:02:58.5]} 10... Nbd7 {[%clk 0:02:40.8]} 11. Bxd6 {[%clk 0:02:58]}
11... Qxd6 {[%clk 0:02:41.1]} 12. Nf4 {[%clk 0:02:58.9]} 12... Bh7 {[%clk
0:02:40.9]} 13. g5 {[%clk 0:02:59.1]} 13... Ng8 {[%clk 0:02:36.7]} 14. e4 {[%clk
0:02:59.2]} 14... dxe4 {[%clk 0:02:33.5]} 15. fxe4 {[%clk 0:02:58.5]} 15...
O-O-O {[%clk 0:02:33.6]} 16. Rg1 {[%clk 0:01:44.2]} 16... hxg5 {[%clk
0:02:32.7]} 17. Rxg5 {[%clk 0:01:43.4]} 17... g6 {[%clk 0:01:55.6]} 18. Ra5
{[%clk 0:01:27.2]} 18... Kb8 {[%clk 0:01:43]} 19. d5 {[%clk 0:01:12.5]} 19...
cxd5 {[%clk 0:01:22.9]} 20. Nb5 {[%clk 0:00:50]} 20... Qb6 {[%clk 0:01:22.5]}
21. Nxd5 {[%clk 0:00:43.6]} 21... exd5 {[%clk 0:01:18.9]} 22. Qf4+ {[%clk
0:00:39.6]} 22... Ka8 {[%clk 0:01:19]} 23. Nc7+ {[%clk 0:00:18.4]} 23... Kb8
{[%clk 0:01:18.8]} 24. Nxd5+ {[%clk 0:00:16.1]} 24... Ka8 {[%clk 0:01:18.5]} 25.
Nxb6+ {[%clk 0:00:14]} 1-0

[Event "*** Titled Tuesday Blitz"]
[Site "Chess.com"]
[Date "2021.04.06"]
[Round "6"]
[White "yonaltimur"]
[Black "TedBelanoff"]
[Result "0-1"]
[WhiteElo "1793"]
[BlackElo "2116"]
[TimeControl "180+1"]
[EndTime "11:06:33 PDT"]
[Termination "TedBelanoff won on time"]

1. e4 {[%clk 0:03:00.9]} 1... e5 {[%clk 0:02:59.7]} 2. Nf3 {[%clk 0:02:52.2]}
2... Nc6 {[%clk 0:02:59.8]} 3. Bb5 {[%clk 0:02:52.4]} 3... Bc5 {[%clk
0:02:59.9]} 4. O-O {[%clk 0:02:44.7]} 4... a6 {[%clk 0:02:59.4]} 5. Bxc6 {[%clk
0:02:35.6]} 5... dxc6 {[%clk 0:02:49.8]} 6. Nxe5 {[%clk 0:02:34]} 6... Nf6
{[%clk 0:02:49.7]} 7. d3 {[%clk 0:02:21.8]} 7... h5 {[%clk 0:02:48.2]} 8. Nc3
{[%clk 0:01:50]} 8... Ng4 {[%clk 0:02:32.5]} 9. Nxg4 {[%clk 0:01:40.9]} 9...
hxg4 {[%clk 0:02:31.9]} 10. Bf4 {[%clk 0:01:38.3]} 10... Qh4 {[%clk 0:02:30.3]}
11. d4 {[%clk 0:01:20.7]} 11... Bd6 {[%clk 0:02:29.6]} 12. e5 {[%clk 0:01:19.4]}
12... Be7 {[%clk 0:02:29.8]} 13. d5 {[%clk 0:01:13.4]} 13... g5 {[%clk
0:02:01.2]} 14. Bg3 {[%clk 0:01:00.7]} 14... Qh5 {[%clk 0:02:00.9]} 15. d6
{[%clk 0:00:57.4]} 15... cxd6 {[%clk 0:02:00.3]} 16. exd6 {[%clk 0:00:54.8]}
16... Bd8 {[%clk 0:02:00.2]} 17. Re1+ {[%clk 0:00:38.2]} 17... Be6 {[%clk
0:02:00.1]} 18. d7+ {[%clk 0:00:35.6]} 18... Kf8 {[%clk 0:01:59.9]} 19. Qd6+
{[%clk 0:00:32.2]} 19... Be7 {[%clk 0:01:57.9]} 20. Qd4 {[%clk 0:00:23.2]} 20...
Rh6 {[%clk 0:01:51.4]} 21. Ne4 {[%clk 0:00:18.9]} 21... Rd8 {[%clk 0:01:49]} 22.
Qe3 {[%clk 0:00:17.1]} 22... f5 {[%clk 0:01:46.7]} 23. Nc5 {[%clk 0:00:15.9]}
23... Bxc5 {[%clk 0:01:41]} 24. Qxc5+ {[%clk 0:00:14.6]} 24... Kf7 {[%clk
0:01:40.8]} 25. Qe5 {[%clk 0:00:09.8]} 25... f4 {[%clk 0:01:40.4]} 26. Kf1
{[%clk 0:00:05.3]} 26... f3 {[%clk 0:01:37.6]} 27. Kg1 {[%clk 0:00:03.1]} 27...
Rxd7 {[%clk 0:01:33.9]} 0-1